[Event "*** Titled Tuesday 3|2 Blitz (Late)"]
[Site "Chess.com"]
[Date "2016.12.06"]
[Round "4"]
[White "chessking2151"]
[Black "Alliswell998"]
[Result "1-0"]
[WhiteElo "2368"]
[BlackElo "2132"]
[TimeControl "180+2"]
[EndTime "17:45:24 PST"]
[Termination "chessking2151 won on time"]

1. e4 {[%clk 0:03:02]} 1... c5 {[%clk 0:03:00.6]} 2. Nf3 {[%clk 0:03:02.9]} 2...
d6 {[%clk 0:03:01.6]} 3. d4 {[%clk 0:03:02.3]} 3... cxd4 {[%clk 0:03:03.5]} 4.
Nxd4 {[%clk 0:03:04.1]} 4... Nf6 {[%clk 0:03:04.9]} 5. Nc3 {[%clk 0:03:05.5]}
5... a6 {[%clk 0:03:06.3]} 6. Be3 {[%clk 0:03:05.7]} 6... e5 {[%clk 0:03:07.3]}
7. Nb3 {[%clk 0:03:06.8]} 7... Be7 {[%clk 0:03:08.4]} 8. f3 {[%clk 0:03:03]}
8... Be6 {[%clk 0:03:09.7]} 9. Qd2 {[%clk 0:03:01.4]} 9... O-O {[%clk
0:03:09.9]} 10. O-O-O {[%clk 0:02:59.7]} 10... a5 {[%clk 0:03:11.5]} 11. Bb5
{[%clk 0:02:57.6]} 11... Na6 {[%clk 0:03:10.9]} 12. g4 {[%clk 0:02:57.2]} 12...
Nc7 {[%clk 0:03:05.8]} 13. Bb6 {[%clk 0:02:56]} 13... Nd7 {[%clk 0:03:05.3]} 14.
Be3 {[%clk 0:02:33]} 14... a4 {[%clk 0:02:54.2]} 15. Bxa4 {[%clk 0:02:19.3]}
15... b5 {[%clk 0:02:54.3]} 16. Bxb5 {[%clk 0:02:19]} 16... Nxb5 {[%clk
0:02:53.8]} 17. Nxb5 {[%clk 0:02:19.1]} 17... Rxa2 {[%clk 0:02:54.7]} 18. Qc3
{[%clk 0:02:11.9]} 18... Qb8 {[%clk 0:02:32.1]} 19. Kb1 {[%clk 0:01:19.8]} 19...
Ra4 {[%clk 0:02:19.6]} 20. Na3 {[%clk 0:01:14.2]} 20... Rc8 {[%clk 0:01:55.7]}
21. Qd3 {[%clk 0:01:13]} 21... Nb6 {[%clk 0:01:33.8]} 22. Qb5 {[%clk 0:01:07.9]}
22... Rxa3 {[%clk 0:00:59.7]} 23. bxa3 {[%clk 0:01:08]} 23... Qc7 {[%clk
0:00:55.2]} 24. Qe2 {[%clk 0:00:44.3]} 24... Na4 {[%clk 0:00:51.8]} 25. Qd2
{[%clk 0:00:21.8]} 25... Nc3+ {[%clk 0:00:44.1]} 26. Ka1 {[%clk 0:00:21.9]}
26... Ra8 {[%clk 0:00:40.9]} 27. Kb2 {[%clk 0:00:22]} 27... Na4+ {[%clk
0:00:29.8]} 28. Ka1 {[%clk 0:00:22.1]} 28... Nc3 {[%clk 0:00:18.6]} 29. Kb2
{[%clk 0:00:22.7]} 29... Nxd1+ {[%clk 0:00:19.9]} 30. Rxd1 {[%clk 0:00:23.3]}
30... d5 {[%clk 0:00:21.4]} 31. exd5 {[%clk 0:00:20.9]} 31... Bxa3+ {[%clk
0:00:21.9]} 32. Kb1 {[%clk 0:00:22.2]} 32... Bd7 {[%clk 0:00:14]} 33. d6 {[%clk
0:00:22.5]} 33... Qc4 {[%clk 0:00:13.2]} 34. Qd5 {[%clk 0:00:22.2]} 34... Qa4
{[%clk 0:00:13.3]} 35. Qe4 {[%clk 0:00:21.6]} 35... Bb4 {[%clk 0:00:12]} 36. Bc5
{[%clk 0:00:21.7]} 36... Qa2+ {[%clk 0:00:11.2]} 37. Kc1 {[%clk 0:00:23.2]}
37... Qa3+ {[%clk 0:00:09.9]} 38. Kb1 {[%clk 0:00:22.5]} 38... Bc3 {[%clk
0:00:09.1]} 39. Bxa3 {[%clk 0:00:22]} 39... Rxa3 {[%clk 0:00:10.3]} 40. Qc4
{[%clk 0:00:21.5]} 1-0

[Event "*** Titled Tuesday 3|2 Blitz (Late)"]
[Site "Chess.com"]
[Date "2016.12.06"]
[Round "4"]
[White "SPEEDSKATER"]
[Black "Buffy7"]
[Result "1/2-1/2"]
[WhiteElo "2330"]
[BlackElo "2462"]
[TimeControl "180+2"]
[EndTime "17:45:57 PST"]
[Termination "Game drawn by agreement"]

1. d4 {[%clk 0:03:02]} 1... Nf6 {[%clk 0:02:59.8]} 2. c4 {[%clk 0:03:01.1]} 2...
g6 {[%clk 0:03:01.4]} 3. Nf3 {[%clk 0:03:01.4]} 3... Bg7 {[%clk 0:03:02]} 4. Nc3
{[%clk 0:03:02.9]} 4... d5 {[%clk 0:03:03]} 5. Qb3 {[%clk 0:03:02.1]} 5... dxc4
{[%clk 0:03:03.7]} 6. Qxc4 {[%clk 0:03:03]} 6... O-O {[%clk 0:03:01.2]} 7. e4
{[%clk 0:03:04.4]} 7... Bg4 {[%clk 0:02:58.6]} 8. Be3 {[%clk 0:03:04.3]} 8...
Nc6 {[%clk 0:02:55.9]} 9. Rd1 {[%clk 0:02:45.4]} 9... Nd7 {[%clk 0:02:56.5]} 10.
Be2 {[%clk 0:02:36.5]} 10... e5 {[%clk 0:02:32]} 11. d5 {[%clk 0:02:24.9]} 11...
Ne7 {[%clk 0:02:17]} 12. Nb5 {[%clk 0:02:14.5]} 12... c6 {[%clk 0:02:10]} 13.
dxc6 {[%clk 0:02:03.1]} 13... Nxc6 {[%clk 0:02:11.9]} 14. O-O {[%clk 0:02:02]}
14... a6 {[%clk 0:02:08.3]} 15. Nd6 {[%clk 0:02:02.5]} 15... Qc7 {[%clk
0:02:03.4]} 16. Nxf7 {[%clk 0:01:19.2]} 16... Rxf7 {[%clk 0:02:04.3]} 17. Ng5
{[%clk 0:01:17.2]} 17... Nf6 {[%clk 0:02:05.5]} 18. Bxg4 {[%clk 0:01:11.3]}
18... Nxg4 {[%clk 0:02:05.8]} 19. Nxf7 {[%clk 0:01:04.3]} 19... Qxf7 {[%clk
0:02:07.7]} 20. Qxf7+ {[%clk 0:01:05.3]} 20... Kxf7 {[%clk 0:02:09.5]} 21. Rd7+
{[%clk 0:01:06.6]} 21... Kg8 {[%clk 0:02:08.6]} 22. Rxb7 {[%clk 0:01:08.5]}
22... Nxe3 {[%clk 0:02:00.9]} 23. fxe3 {[%clk 0:01:10.4]} 23... Bh6 {[%clk
0:02:02.2]} 24. Kf2 {[%clk 0:01:10.8]} 24... Rf8+ {[%clk 0:01:40.8]} 25. Ke2
{[%clk 0:01:11]} 25... Rxf1 {[%clk 0:01:42.7]} 26. Kxf1 {[%clk 0:01:12.1]} 26...
Bxe3 {[%clk 0:01:44.4]} 27. Ke2 {[%clk 0:01:13.5]} 27... Bg1 {[%clk 0:01:43.9]}
28. h3 {[%clk 0:01:12.5]} 28... Nd4+ {[%clk 0:01:32.2]} 29. Kd3 {[%clk
0:01:12.7]} 29... Ne6 {[%clk 0:01:33]} 30. Kc4 {[%clk 0:00:58.6]} 30... Nf4
{[%clk 0:01:28.3]} 31. g3 {[%clk 0:00:57.7]} 31... Nxh3 {[%clk 0:01:25.6]} 32.
Kd5 {[%clk 0:00:59.3]} 32... Bd4 {[%clk 0:00:57.8]} 33. b4 {[%clk 0:00:54.3]}
33... Nf2 {[%clk 0:00:50]} 34. a4 {[%clk 0:00:53.9]} 34... h5 {[%clk 0:00:51]}
35. b5 {[%clk 0:00:49.3]} 35... axb5 {[%clk 0:00:52.9]} 36. axb5 {[%clk
0:00:51]} 36... g5 {[%clk 0:00:54.1]} 37. b6 {[%clk 0:00:52.1]} 37... h4 {[%clk
0:00:53.8]} 38. gxh4 {[%clk 0:00:52.1]} 38... gxh4 {[%clk 0:00:55.7]} 39. Rb8+
{[%clk 0:00:53.5]} 39... Kg7 {[%clk 0:00:54.8]} 40. b7 {[%clk 0:00:55]} 40... h3
{[%clk 0:00:41.8]} 41. Ra8 {[%clk 0:00:49.6]} 41... h2 {[%clk 0:00:27.9]} 42.
b8=Q {[%clk 0:00:49.2]} 42... h1=Q {[%clk 0:00:28.5]} 43. Qg8+ {[%clk 0:00:49]}
43... Kh6 {[%clk 0:00:28]} 44. Ra6+ {[%clk 0:00:43.5]} 44... Kh5 {[%clk
0:00:28.9]} 45. Qg6+ {[%clk 0:00:44.3]} 45... Kh4 {[%clk 0:00:28.4]} 46. Ra8
{[%clk 0:00:18.4]} 46... Qxe4+ {[%clk 0:00:21.1]} 47. Qxe4+ {[%clk 0:00:20.3]}
47... Nxe4 {[%clk 0:00:22.7]} 48. Kxe4 {[%clk 0:00:21.8]} 48... Kg3 {[%clk
0:00:24.1]} 49. Rg8+ {[%clk 0:00:22.7]} 49... Kf2 {[%clk 0:00:25.4]} 50. Rf8+
{[%clk 0:00:24.1]} 50... Ke2 {[%clk 0:00:26.7]} 51. Rh8 {[%clk 0:00:25.7]} 51...
Kf2 {[%clk 0:00:27.8]} 52. Rh3 {[%clk 0:00:27.4]} 52... Kg2 {[%clk 0:00:29]} 53.
Rb3 {[%clk 0:00:28.9]} 53... Kf2 {[%clk 0:00:29.9]} 54. Kf5 {[%clk 0:00:30.3]}
54... Ke2 {[%clk 0:00:30.6]} 55. Ke4 {[%clk 0:00:31.5]} 55... Kd2 {[%clk
0:00:32.2]} 56. Rd3+ {[%clk 0:00:32.4]} 56... Ke2 {[%clk 0:00:33.3]} 57. Rh3
{[%clk 0:00:34.3]} 57... Kf2 {[%clk 0:00:34.2]} 58. Rh5 {[%clk 0:00:34.8]}
1/2-1/2

[Event "*** Titled Tuesday 3|2 Blitz (Late)"]
[Site "Chess.com"]
[Date "2016.12.06"]
[Round "4"]
[White "ecwinslow"]
[Black "chesstatour"]
[Result "1-0"]
[WhiteElo "2097"]
[BlackElo "1894"]
[TimeControl "180+2"]
[EndTime "17:46:03 PST"]
[Termination "ecwinslow won by resignation"]

1. e4 {[%clk 0:03:01.9]} 1... c6 {[%clk 0:02:59]} 2. d4 {[%clk 0:03:01.5]} 2...
d5 {[%clk 0:02:59.8]} 3. Nd2 {[%clk 0:03:02.4]} 3... dxe4 {[%clk 0:03:00.1]} 4.
Nxe4 {[%clk 0:03:03.6]} 4... Nf6 {[%clk 0:03:01.7]} 5. Nxf6+ {[%clk 0:03:03.1]}
5... gxf6 {[%clk 0:03:03.6]} 6. Nf3 {[%clk 0:03:00.6]} 6... Bg4 {[%clk
0:03:02.9]} 7. Be2 {[%clk 0:02:56.2]} 7... e6 {[%clk 0:02:59.9]} 8. Be3 {[%clk
0:02:54.7]} 8... Bd6 {[%clk 0:02:54.4]} 9. h3 {[%clk 0:02:53.5]} 9... Bh5 {[%clk
0:02:54.6]} 10. c4 {[%clk 0:02:39.8]} 10... Qc7 {[%clk 0:02:53.2]} 11. Qb3
{[%clk 0:02:31.6]} 11... O-O {[%clk 0:02:27.7]} 12. O-O {[%clk 0:02:22.1]} 12...
c5 {[%clk 0:01:21.1]} 13. dxc5 {[%clk 0:02:12.2]} 13... Bxc5 {[%clk 0:01:23]}
14. Bxc5 {[%clk 0:02:11.9]} 14... Qxc5 {[%clk 0:01:23.7]} 15. Qxb7 {[%clk
0:02:12.3]} 15... Nc6 {[%clk 0:01:25.2]} 16. Qb5 {[%clk 0:02:13]} 16... Qxb5
{[%clk 0:00:58.8]} 17. cxb5 {[%clk 0:02:11.8]} 17... Ne5 {[%clk 0:00:59.3]} 18.
g4 {[%clk 0:02:02]} 18... Bg6 {[%clk 0:00:57]} 19. Nxe5 {[%clk 0:01:57]} 19...
fxe5 {[%clk 0:00:58.9]} 20. Rac1 {[%clk 0:01:55.5]} 20... Rfd8 {[%clk
0:00:48.3]} 21. Rfd1 {[%clk 0:01:54.5]} 21... Be4 {[%clk 0:00:34.8]} 22. f3
{[%clk 0:01:38]} 22... Rxd1+ {[%clk 0:00:20.8]} 23. Rxd1 {[%clk 0:01:35.4]}
23... Bd5 {[%clk 0:00:21.4]} 24. b3 {[%clk 0:01:35.9]} 24... Rc8 {[%clk
0:00:20]} 25. Rd2 {[%clk 0:01:33.3]} 25... Rc3 {[%clk 0:00:16.8]} 26. Kf2 {[%clk
0:01:34]} 26... Kg7 {[%clk 0:00:14.2]} 27. h4 {[%clk 0:01:29.6]} 27... e4 {[%clk
0:00:10.4]} 28. fxe4 {[%clk 0:01:23.1]} 28... Bxe4 {[%clk 0:00:10.4]} 29. Rd7
{[%clk 0:01:16.7]} 29... Rc2 {[%clk 0:00:06.4]} 30. Ke3 {[%clk 0:01:16]} 30...
Rxa2 {[%clk 0:00:06.7]} 31. Bc4 {[%clk 0:01:00.4]} 31... Bd5 {[%clk 0:00:05.9]}
32. Bxd5 {[%clk 0:01:00]} 32... exd5 {[%clk 0:00:07.5]} 33. Rxd5 {[%clk
0:00:59.4]} 33... Rb2 {[%clk 0:00:05]} 34. Rd3 {[%clk 0:00:58.1]} 34... Rh2
{[%clk 0:00:04.1]} 35. h5 {[%clk 0:00:57.1]} 35... Rh3+ {[%clk 0:00:04.7]} 36.
Ke4 {[%clk 0:00:57.7]} 36... Rh4 {[%clk 0:00:04.1]} 37. Kf5 {[%clk 0:00:57.5]}
37... h6 {[%clk 0:00:04.4]} 38. Rd7 {[%clk 0:00:56]} 38... Rh3 {[%clk
0:00:04.9]} 39. b4 {[%clk 0:00:54.2]} 39... Rb3 {[%clk 0:00:05.5]} 40. Rd4
{[%clk 0:00:49.1]} 40... Rb2 {[%clk 0:00:05]} 41. Ke5 {[%clk 0:00:47.3]} 41...
Rb1 {[%clk 0:00:04.6]} 42. Kd5 {[%clk 0:00:45]} 42... Rb2 {[%clk 0:00:03.9]} 43.
Kc6 {[%clk 0:00:45.1]} 43... Re2 {[%clk 0:00:02.7]} 44. Rc4 {[%clk 0:00:40.7]}
44... Re6+ {[%clk 0:00:02.6]} 45. Kb7 {[%clk 0:00:40.4]} 45... Re7+ {[%clk
0:00:03.2]} 46. Rc7 {[%clk 0:00:39.7]} 46... Re4 {[%clk 0:00:04.1]} 47. Kxa7
{[%clk 0:00:39.5]} 47... Rxb4 {[%clk 0:00:05.2]} 48. b6 {[%clk 0:00:40.3]} 48...
Ra4+ {[%clk 0:00:06.3]} 49. Kb8 {[%clk 0:00:41.6]} 49... Kf6 {[%clk 0:00:06.5]}
50. b7 {[%clk 0:00:42]} 50... Rxg4 {[%clk 0:00:07.2]} 51. Rc6+ {[%clk
0:00:40.4]} 51... Ke7 {[%clk 0:00:07.2]} 52. Kc7 {[%clk 0:00:40.1]} 1-0

[Event "*** Titled Tuesday 3|2 Blitz (Late)"]
[Site "Chess.com"]
[Date "2016.12.06"]
[Round "4"]
[White "SenseiJulio"]
[Black "DanielNaroditsky"]
[Result "0-1"]
[WhiteElo "2528"]
[BlackElo "2695"]
[TimeControl "180+2"]
[EndTime "17:46:06 PST"]
[Termination "DanielNaroditsky won on time"]

1. d4 {[%clk 0:03:02]} 1... Nf6 {[%clk 0:02:59.8]} 2. c4 {[%clk 0:02:59.5]} 2...
d6 {[%clk 0:03:00]} 3. Nc3 {[%clk 0:02:58.8]} 3... Nbd7 {[%clk 0:02:59.8]} 4.
Nf3 {[%clk 0:02:58.9]} 4... e5 {[%clk 0:03:00.4]} 5. Bg5 {[%clk 0:02:58.5]} 5...
Be7 {[%clk 0:03:00.9]} 6. e3 {[%clk 0:02:59.2]} 6... c6 {[%clk 0:03:00.6]} 7.
Qc2 {[%clk 0:02:59.6]} 7... O-O {[%clk 0:03:00.4]} 8. O-O-O {[%clk 0:02:59.9]}
8... Qa5 {[%clk 0:02:59]} 9. Kb1 {[%clk 0:02:58.3]} 9... a6 {[%clk 0:02:58.6]}
10. Bd3 {[%clk 0:02:56.5]} 10... b5 {[%clk 0:02:47.4]} 11. Bxh7+ {[%clk
0:02:56.3]} 11... Kh8 {[%clk 0:02:46]} 12. Bf5 {[%clk 0:02:49.9]} 12... bxc4
{[%clk 0:02:37.4]} 13. Bxd7 {[%clk 0:02:46.2]} 13... Bxd7 {[%clk 0:02:07.2]} 14.
dxe5 {[%clk 0:02:47.1]} 14... Ng8 {[%clk 0:02:01.1]} 15. Qe4 {[%clk 0:02:32.8]}
15... Rab8 {[%clk 0:01:42.6]} 16. Rc1 {[%clk 0:01:45.3]} 16... Nh6 {[%clk
0:01:33.8]} 17. Bxh6 {[%clk 0:01:02.6]} 17... gxh6 {[%clk 0:01:35.7]} 18. Qf4
{[%clk 0:00:45.9]} 18... Kg7 {[%clk 0:01:35.8]} 19. exd6 {[%clk 0:00:40.1]}
19... Bf6 {[%clk 0:01:33]} 20. Nd4 {[%clk 0:00:35.5]} 20... Be5 {[%clk 0:00:52]}
21. Qe4 {[%clk 0:00:26.7]} 21... Bxd6 {[%clk 0:00:45.3]} 22. Ka1 {[%clk
0:00:27.5]} 22... Rfe8 {[%clk 0:00:38]} 23. Nxc6 {[%clk 0:00:20.8]} 23... Qb6
{[%clk 0:00:19.5]} 24. Qd4+ {[%clk 0:00:21.6]} 24... Qxd4 {[%clk 0:00:21.2]} 25.
Nxd4 {[%clk 0:00:23.1]} 25... Rb6 {[%clk 0:00:20.4]} 26. Rc2 {[%clk 0:00:21.4]}
26... Be5 {[%clk 0:00:20.2]} 27. Nce2 {[%clk 0:00:21]} 27... Reb8 {[%clk
0:00:20.1]} 28. Rb1 {[%clk 0:00:20.5]} 28... Rb4 {[%clk 0:00:12.4]} 29. f3
{[%clk 0:00:18.8]} 29... Bf6 {[%clk 0:00:11.9]} 30. g4 {[%clk 0:00:18.5]} 30...
Re8 {[%clk 0:00:11.7]} 31. Ng3 {[%clk 0:00:18.8]} 31... Kg6 {[%clk 0:00:09.1]}
32. Ngf5 {[%clk 0:00:13.9]} 32... Reb8 {[%clk 0:00:08.9]} 33. Nd6 {[%clk
0:00:12.8]} 33... Be6 {[%clk 0:00:06.6]} 34. Nxe6 {[%clk 0:00:12.6]} 34... fxe6
{[%clk 0:00:07.1]} 35. Nxc4 {[%clk 0:00:12.9]} 35... a5 {[%clk 0:00:04.4]} 36.
f4 {[%clk 0:00:12.1]} 36... a4 {[%clk 0:00:05]} 37. a3 {[%clk 0:00:12.9]} 37...
Rb3 {[%clk 0:00:06.2]} 38. Ka2 {[%clk 0:00:14.2]} 38... Rd8 {[%clk 0:00:06.4]}
39. e4 {[%clk 0:00:11.4]} 39... Rd4 {[%clk 0:00:06.3]} 40. Re1 {[%clk
0:00:10.5]} 40... Rxc4 {[%clk 0:00:06.6]} 41. f5+ {[%clk 0:00:06.3]} 41... exf5
{[%clk 0:00:06.4]} 42. exf5+ {[%clk 0:00:07]} 42... Kg5 {[%clk 0:00:06.1]} 43.
h4+ {[%clk 0:00:06.8]} 43... Kxh4 {[%clk 0:00:06.7]} 44. Ree2 {[%clk 0:00:06.7]}
44... Rxc2 {[%clk 0:00:07.5]} 45. Rxc2 {[%clk 0:00:08.6]} 45... Kxg4 {[%clk
0:00:08.5]} 46. Rc4+ {[%clk 0:00:10.3]} 46... Kxf5 {[%clk 0:00:10]} 47. Rxa4
{[%clk 0:00:12.1]} 47... Rxb2+ {[%clk 0:00:11.5]} 48. Ka1 {[%clk 0:00:13.7]}
48... Rb4+ {[%clk 0:00:12.9]} 0-1

[Event "*** Titled Tuesday 3|2 Blitz (Late)"]
[Site "Chess.com"]
[Date "2016.12.06"]
[Round "4"]
[White "Izoria123"]
[Black "anon102030"]
[Result "1/2-1/2"]
[WhiteElo "2588"]
[BlackElo "2565"]
[TimeControl "180+2"]
[EndTime "17:46:45 PST"]
[Termination "Game drawn by agreement"]

1. Nf3 {[%clk 0:03:02]} 1... d6 {[%clk 0:02:58.1]} 2. d4 {[%clk 0:03:02.6]} 2...
g6 {[%clk 0:02:59.3]} 3. e4 {[%clk 0:03:01.3]} 3... Bg7 {[%clk 0:03:00.3]} 4.
Bc4 {[%clk 0:03:02.1]} 4... Nc6 {[%clk 0:02:57.7]} 5. O-O {[%clk 0:03:01.7]}
5... e5 {[%clk 0:02:55.2]} 6. dxe5 {[%clk 0:03:01.8]} 6... dxe5 {[%clk
0:02:53.5]} 7. Bb5 {[%clk 0:02:28.9]} 7... Bd7 {[%clk 0:02:37.4]} 8. c3 {[%clk
0:02:23.3]} 8... Nge7 {[%clk 0:02:34.9]} 9. Be3 {[%clk 0:02:22.5]} 9... a6
{[%clk 0:02:31.6]} 10. Bc4 {[%clk 0:02:17.9]} 10... O-O {[%clk 0:02:28.8]} 11.
Nbd2 {[%clk 0:02:18.5]} 11... h6 {[%clk 0:02:22.7]} 12. b4 {[%clk 0:02:18.4]}
12... Kh7 {[%clk 0:02:21.4]} 13. a4 {[%clk 0:02:14.9]} 13... f5 {[%clk
0:02:20.8]} 14. b5 {[%clk 0:02:07.1]} 14... Na5 {[%clk 0:02:19.5]} 15. Be2
{[%clk 0:01:42.4]} 15... axb5 {[%clk 0:02:13.9]} 16. axb5 {[%clk 0:01:41.9]}
16... b6 {[%clk 0:02:13.3]} 17. Nb3 {[%clk 0:01:37.7]} 17... Nxb3 {[%clk
0:01:57.6]} 18. Qxb3 {[%clk 0:01:37.9]} 18... f4 {[%clk 0:01:59.3]} 19. Bd2
{[%clk 0:01:37]} 19... g5 {[%clk 0:01:34.5]} 20. h3 {[%clk 0:01:34.7]} 20...
Rxa1 {[%clk 0:01:13.1]} 21. Rxa1 {[%clk 0:01:35]} 21... Nc8 {[%clk 0:01:14.7]}
22. c4 {[%clk 0:01:27.6]} 22... Be6 {[%clk 0:01:10.8]} 23. Qc2 {[%clk
0:01:25.6]} 23... h5 {[%clk 0:01:05.5]} 24. Bc3 {[%clk 0:01:18.6]} 24... Qd6
{[%clk 0:00:57]} 25. Nxg5+ {[%clk 0:01:13]} 25... Kh6 {[%clk 0:00:51.7]} 26. Nf3
{[%clk 0:01:10.4]} 26... Bf6 {[%clk 0:00:44.6]} 27. Qb2 {[%clk 0:01:10.2]} 27...
Rg8 {[%clk 0:00:42.6]} 28. Kh1 {[%clk 0:01:11.3]} 28... Qc5 {[%clk 0:00:29.4]}
29. Bf1 {[%clk 0:00:56.7]} 29... Nd6 {[%clk 0:00:28.3]} 30. Bxe5 {[%clk
0:00:38]} 30... Bxe5 {[%clk 0:00:22.1]} 31. Nxe5 {[%clk 0:00:38.9]} 31... Nxe4
{[%clk 0:00:21.8]} 32. Nd3 {[%clk 0:00:39.2]} 32... Qd6 {[%clk 0:00:18.4]} 33.
Re1 {[%clk 0:00:35.5]} 33... Bf5 {[%clk 0:00:14.2]} 34. Qc1 {[%clk 0:00:30.4]}
34... Kh7 {[%clk 0:00:07.9]} 35. Qxf4 {[%clk 0:00:27.9]} 35... Qxf4 {[%clk
0:00:08.9]} 36. Nxf4 {[%clk 0:00:29.8]} 36... Nxf2+ {[%clk 0:00:10.3]} 37. Kg1
{[%clk 0:00:28.2]} 37... Ne4 {[%clk 0:00:07.7]} 38. Nxh5 {[%clk 0:00:27]} 38...
Kh6 {[%clk 0:00:08.9]} 39. Nf4 {[%clk 0:00:25.3]} 39... Ng3 {[%clk 0:00:09.3]}
40. Re7 {[%clk 0:00:23.1]} 40... Rf8 {[%clk 0:00:10.1]} 41. Bd3 {[%clk
0:00:22.4]} 41... Bxd3 {[%clk 0:00:07.9]} 42. Nxd3 {[%clk 0:00:23.6]} 42... Rd8
{[%clk 0:00:06.2]} 43. Ne5 {[%clk 0:00:19]} 43... Rd2 {[%clk 0:00:06.6]} 44.
Rxc7 {[%clk 0:00:19]} 44... Rc2 {[%clk 0:00:03.6]} 45. Nf3 {[%clk 0:00:18.3]}
45... Ne2+ {[%clk 0:00:02.9]} 46. Kf1 {[%clk 0:00:19.5]} 46... Nf4 {[%clk
0:00:04.8]} 47. Rc6+ {[%clk 0:00:20.7]} 47... Kg7 {[%clk 0:00:04.8]} 48. g4
{[%clk 0:00:21.2]} 48... Ng2 {[%clk 0:00:05.1]} 49. Re6 {[%clk 0:00:20.3]} 49...
Nf4 {[%clk 0:00:05.2]} 50. Rxb6 {[%clk 0:00:20.8]} 50... Nxh3 {[%clk 0:00:06.1]}
51. Re6 {[%clk 0:00:21.4]} 51... Rf2+ {[%clk 0:00:06.9]} 52. Ke1 {[%clk
0:00:22.3]} 52... Rxf3 {[%clk 0:00:08.8]} 53. c5 {[%clk 0:00:22.8]} 53... Nf4
{[%clk 0:00:09.2]} 54. Re7+ {[%clk 0:00:23.2]} 54... Kf6 {[%clk 0:00:09.9]} 55.
Rb7 {[%clk 0:00:20.7]} 55... Rb3 {[%clk 0:00:09.5]} 56. b6 {[%clk 0:00:21.2]}
56... Nd3+ {[%clk 0:00:10.1]} 57. Kd1 {[%clk 0:00:20.5]} 57... Nxc5 {[%clk
0:00:12]} 58. Rc7 {[%clk 0:00:21.8]} 58... Ne6 {[%clk 0:00:12.9]} 59. Rc6 {[%clk
0:00:22.7]} 59... Ke5 {[%clk 0:00:12.8]} 60. g5 {[%clk 0:00:23.4]} 60... Nxg5
{[%clk 0:00:13.2]} 61. Rc5+ {[%clk 0:00:23.7]} 61... Kd4 {[%clk 0:00:12.8]} 62.
Rxg5 {[%clk 0:00:24.2]} 62... Rxb6 {[%clk 0:00:14.3]} 63. Rg4+ {[%clk
0:00:25.4]} 1/2-1/2

[Event "*** Titled Tuesday 3|2 Blitz (Late)"]
[Site "Chess.com"]
[Date "2016.12.06"]
[Round "4"]
[White "MaestroASK"]
[Black "Paralinch"]
[Result "0-1"]
[WhiteElo "2443"]
[BlackElo "2656"]
[TimeControl "180+2"]
[EndTime "17:46:53 PST"]
[Termination "Paralinch won on time"]

1. g3 {[%clk 0:03:01.9]} 1... c6 {[%clk 0:02:23.6]} 2. d3 {[%clk 0:03:01.5]}
2... d5 {[%clk 0:02:25.5]} 3. e4 {[%clk 0:03:01.8]} 3... dxe4 {[%clk 0:02:26.4]}
4. dxe4 {[%clk 0:03:02.6]} 4... Qxd1+ {[%clk 0:02:28.3]} 5. Kxd1 {[%clk
0:03:03.3]} 5... g6 {[%clk 0:02:29.8]} 6. Bh3 {[%clk 0:03:03.4]} 6... Bxh3
{[%clk 0:02:29.7]} 7. Nxh3 {[%clk 0:02:59]} 7... Nd7 {[%clk 0:02:31.1]} 8. f3
{[%clk 0:02:58.5]} 8... O-O-O {[%clk 0:02:31.6]} 9. Ke2 {[%clk 0:02:58.9]} 9...
Bg7 {[%clk 0:02:32.9]} 10. c3 {[%clk 0:02:57.9]} 10... Nc5 {[%clk 0:02:32.7]}
11. Nf2 {[%clk 0:02:57.5]} 11... Ne6 {[%clk 0:02:30.6]} 12. Na3 {[%clk 0:02:56]}
12... Nf6 {[%clk 0:02:30.7]} 13. Be3 {[%clk 0:02:53.8]} 13... b6 {[%clk
0:02:31.7]} 14. Nc4 {[%clk 0:02:53.8]} 14... Nd7 {[%clk 0:02:31.5]} 15. a4
{[%clk 0:02:51.6]} 15... Kb7 {[%clk 0:02:32.1]} 16. Nd3 {[%clk 0:02:51.3]} 16...
a6 {[%clk 0:02:29.2]} 17. Ra3 {[%clk 0:02:48.6]} 17... h5 {[%clk 0:02:26]} 18.
h4 {[%clk 0:02:47.7]} 18... Nc7 {[%clk 0:02:20.2]} 19. Rb1 {[%clk 0:02:36]}
19... f5 {[%clk 0:02:18.5]} 20. e5 {[%clk 0:02:31.5]} 20... Nd5 {[%clk
0:02:17.5]} 21. f4 {[%clk 0:02:28.2]} 21... Nxe3 {[%clk 0:02:17.7]} 22. Kxe3
{[%clk 0:02:28.1]} 22... Bf8 {[%clk 0:02:18.5]} 23. b4 {[%clk 0:02:27.8]} 23...
e6 {[%clk 0:02:19.7]} 24. Ra2 {[%clk 0:02:26.3]} 24... Be7 {[%clk 0:02:20.5]}
25. Rd2 {[%clk 0:02:24.7]} 25... Kc7 {[%clk 0:02:17.5]} 26. Ne1 {[%clk
0:02:18.1]} 26... b5 {[%clk 0:02:18.1]} 27. axb5 {[%clk 0:01:54.1]} 27... axb5
{[%clk 0:02:20]} 28. Na5 {[%clk 0:01:43.2]} 28... Nb6 {[%clk 0:02:20.9]} 29. Ke2
{[%clk 0:01:41.4]} 29... Nd5 {[%clk 0:02:18.2]} 30. Rd3 {[%clk 0:01:36.9]} 30...
Rd7 {[%clk 0:02:14.4]} 31. Nf3 {[%clk 0:01:35.7]} 31... Rhd8 {[%clk 0:02:14.8]}
32. Ke1 {[%clk 0:01:24.7]} 32... Nb6 {[%clk 0:02:10.2]} 33. Rxd7+ {[%clk
0:01:23.3]} 33... Kxd7 {[%clk 0:02:06.5]} 34. Rd1+ {[%clk 0:01:20.6]} 34... Nd5
{[%clk 0:02:07.5]} 35. Rd3 {[%clk 0:01:19.9]} 35... Ra8 {[%clk 0:02:01.9]} 36.
Nd4 {[%clk 0:01:16.9]} 36... Ra6 {[%clk 0:02:02.9]} 37. Ke2 {[%clk 0:01:15.1]}
37... Nxc3+ {[%clk 0:01:50.8]} 38. Rxc3 {[%clk 0:01:14.6]} 38... Bxb4 {[%clk
0:01:52.3]} 39. Rxc6 {[%clk 0:00:48.2]} 39... Rxa5 {[%clk 0:01:53]} 40. Rb6
{[%clk 0:00:31.9]} 40... Bc5 {[%clk 0:01:51.8]} 41. Rxb5 {[%clk 0:00:32.6]}
41... Ra2+ {[%clk 0:01:52.7]} 42. Kd3 {[%clk 0:00:32.3]} 42... Ra3+ {[%clk
0:01:53.8]} 43. Nb3 {[%clk 0:00:32.1]} 43... Bf2 {[%clk 0:01:54.9]} 44. Ke2
{[%clk 0:00:28]} 44... Bxg3 {[%clk 0:01:55.4]} 45. Rb7+ {[%clk 0:00:24.8]} 45...
Kc6 {[%clk 0:01:55.4]} 46. Rb4 {[%clk 0:00:20.2]} 46... Bxf4 {[%clk 0:01:52.1]}
47. Nd4+ {[%clk 0:00:12.9]} 47... Kd5 {[%clk 0:01:41.7]} 48. Nc2 {[%clk
0:00:11.8]} 48... Ra2 {[%clk 0:01:41.8]} 49. Kd3 {[%clk 0:00:09.6]} 49... Bxe5
{[%clk 0:01:39.6]} 50. Rb7 {[%clk 0:00:10.2]} 50... Kd6 {[%clk 0:01:38.1]} 51.
Rb6+ {[%clk 0:00:10.2]} 51... Ke7 {[%clk 0:01:39]} 52. Rb7+ {[%clk 0:00:11.3]}
52... Kf6 {[%clk 0:01:40.1]} 53. Rb6 {[%clk 0:00:11.3]} 53... Rb2 {[%clk
0:01:38.4]} 54. Ra6 {[%clk 0:00:11.6]} 54... Rb3+ {[%clk 0:01:39.4]} 55. Ke2
{[%clk 0:00:12]} 55... Rh3 {[%clk 0:01:40]} 56. Nb4 {[%clk 0:00:11]} 56... f4
{[%clk 0:01:35.2]} 57. Nd5+ {[%clk 0:00:08.3]} 57... Kf5 {[%clk 0:01:35.9]} 58.
Ne7+ {[%clk 0:00:06.7]} 58... Kg4 {[%clk 0:01:31.9]} 59. Nxg6 {[%clk 0:00:07.5]}
59... f3+ {[%clk 0:01:32.7]} 60. Ke3 {[%clk 0:00:08.3]} 60... Bh2 {[%clk
0:01:21.1]} 61. Ra5 {[%clk 0:00:02.6]} 61... Bg1+ {[%clk 0:01:19.5]} 62. Ke4
{[%clk 0:00:03.2]} 62... Kg3 {[%clk 0:01:14.4]} 63. Rg5+ {[%clk 0:00:03.1]}
63... Kf2 {[%clk 0:01:15.9]} 64. Rxh5 {[%clk 0:00:03.6]} 64... Rg3 {[%clk
0:01:12.4]} 65. Nf4 {[%clk 0:00:02.9]} 65... Rg4 {[%clk 0:01:13.8]} 66. Ra5
{[%clk 0:00:02.3]} 66... Kg3 {[%clk 0:01:14.5]} 0-1